{"text_format":"1","workbook":"xlsx","n_sheets":4,"sheets":["Portada","Cálculo_Gasto de depreciación","Parametros depreciacion","Catálogo"],"not_rendered":{"charts":0,"images":2,"macros":1,"external_links":0,"defined_names":1,"comments":0,"pivot_tables":0},"unopened":[],"bounds":{"document_bytes":16777216,"sheet_cells":100000,"rows_first":2000,"rows_last":500,"rows_between":2000,"halvings":0,"cell_chars":16384,"cell_head_chars":4096},"cells_cut":0,"cells_raw":0,"read":"whole","date_system":"1900"}

{"sheet":"Portada","index":0,"n_rows":12,"n_cols":3,"rows_kept":12,"cut":false,"hidden":false,"merged":[[11,2,13,7]]}
[]
[]
[]
[]
[]
[]
[]
[]
[]
[]
[]
[null,null,"Foundation BPN pone a disposición de los dueños de negocios una biblioteca de recursos y herramientas sencillos en temas empresariales, para acompañarlos en el crecimiento de sus negocios.\n\n"]

{"sheet":"Cálculo_Gasto de depreciación","index":1,"n_rows":30,"n_cols":4,"rows_kept":30,"cut":false,"hidden":false,"merged":[]}
[]
[]
[]
[]
[]
[null,"Calculadora de depreciación"]
[]
[null,"La maquinaria y los equipos pierden valor con cada año de uso. Esta pérdida de valor se debe al desgaste, la exposición a la intemperie y el envejecimiento,"]
[null,"a los avances técnicos, la expiración de los permisos y los cambios en la demanda."]
[]
[]
[]
[]
[null,"Valor del activo"]
[]
[null,"Valor residual"]
[]
[null,"Vida útil en años"]
[null,"Número de períodos a depreciar",{"$f":"IF(C18=\"\",\"\",C18*mesaño)","v":""},12]
[]
[]
[]
[]
[null,"Depreciación mensual:"]
[]
[null,"Gasto anual de depreciación:"]
[]
[null,"(*) Existen diferentes métodos de depreciación, el método de depreciación utilizado es la depreciación lineal, de conformidad al numeral 1 del artículo 45. Sistemas de depreciación y amortización, de la ley No. 822, Ley de Concertación Tributaria."]
[]
[null,"Nota aclaratoria: Este servicio sólo es de consulta y no representa ninguna obligación para Foundation BPN."]

{"sheet":"Parametros depreciacion","index":2,"n_rows":43,"n_cols":3,"rows_kept":43,"cut":false,"hidden":false,"merged":[[0,0,0,2],[37,0,37,2],[42,0,42,2]]}
["PARAMETROS PARA EL CÁLCULO DE DEPRECIACIÓN"]
[]
["Tipo de bienes","Vida útil       (en años)","Vida útil      (en meses)"]
["EDIFICIOS"]
["Industriales",10,{"$f":"B5*12","v":120}]
["Comerciales",20,{"$f":"B6*12","v":240}]
["Residencia del propietario cuando esté ubicado en finca destinada a explotación agropecuaria",10,120]
["Instalaciones fijas en explotaciones agropecuarias",10,120]
["Para los edificios de alquiler",30,360]
[]
["EQUIPOS DE TRANSPORTE"]
["Colectivo o de carga",5,60]
["Vehículos de empresas de alquiler",3,36]
["Vehículos de uso particular usados en rentas de actividades económicas",5,60]
["Otros equipos de transporte",8,96]
[]
["MAQUINARIAS Y EQUIPOS"]
["a.Industriales en general"]
["i.Fija en un bien inmóvil",10,120]
["ii.No adherido permanentemente a la planta",7,84]
["iii.Otras maquinarias y equipos",5,60]
[]
["b.Equipo empresas agroindustriales",5,60]
[]
["c.Agrícolas",5,60]
[]
["d.Otros, bienes muebles:"]
["i.Mobiliarios y equipo de oficina",5,60]
["ii.Equipos de comunicación",5,60]
["iii.Ascensores, elevadores y unidades centrales de aire acondicionado",10,120]
["iv.Equipos de Computación (CPU, Monitor, teclado, impresora, laptop, tableta, escáner, fotocopiadoras, entre otros)",2,24]
["v.Equipos para medios de comunicación (Cámaras de videos y fotográficos, entre otros)",2,24]
["vi.Los demás, no comprendidos en los literales anteriores",5,60]
[]
[]
[]
[]
["* El plazo de depreciación será determinado como el producto de la vida útil del activo, por el cociente del valor de la mejora y el valor del activo a precio de mercado"]
[]
[]
[]
[]
["Tomado del artículo 34. Sistemas de depreciación y amortización, del reglamento de la ley No. 822, Ley de Concertación Tributaria; Decreto No. 01-2013; publicado en La Gaceta No. 12, el día 22 de Enero del 2013"]

{"sheet":"Catálogo","index":3,"n_rows":3,"n_cols":3,"rows_kept":3,"cut":false,"hidden":true,"merged":[]}
[]
[null,null,2]
[null,null,2]